bitfinex/quotes_BTCUSD_20240727
["timestamp","ask_amount","ask_price","bid_price","bid_amount"]
[1722097910804,0.01016,69089.0,69088.0,2.01754063]
[1722097911365,0.01016,69089.0,69088.0,2.30702563]
[1722097912366,0.01016,69089.0,69088.0,2.09552563]
[1722097913392,0.01016,69089.0,69088.0,1.63278106]
[1722097913569,0.03287493,69089.0,69088.0,1.63278106]
[1722097913776,0.03287493,69089.0,69088.0,1.63278344]
[1722097914833,0.08986,69089.0,69088.0,1.48798344]
[1722097915042,0.08986,69089.0,69088.0,1.33869624]
[1722097915415,0.01016,69089.0,69088.0,1.33869624]
[1722097916088,0.01016,69089.0,69088.0,1.36771624]
[1722097918140,0.03287567,69089.0,69088.0,1.36771624]
[1722097919695,0.01016,69089.0,69088.0,1.36771624]
[1722097922817,0.01016,69089.0,69088.0,1.33869624]
[1722097922964,0.03287556,69089.0,69088.0,1.36771624]
[1722097923166,0.01016,69089.0,69088.0,1.36771624]
[1722097923598,0.01016,69089.0,69088.0,0.75972624]
[1722097923794,0.08986,69089.0,69088.0,0.31149924]
[1722097923996,0.08986,69089.0,69088.0,0.29749924]
[1722097924204,0.08986,69089.0,69088.0,0.74572624]
[1722097924373,0.08986,69089.0,69088.0,0.75972624]
[1722097924589,0.08986,69089.0,69088.0,0.74572624]
[1722097924802,0.08986,69089.0,69088.0,0.45624124]
[1722097924974,0.08986,69089.0,69088.0,0.75972624]
[1722097925550,0.08986,69089.0,69088.0,0.45624124]
[1722097925687,0.08986,69089.0,69088.0,0.74572624]
[1722097925911,0.08986,69089.0,69088.0,0.45624124]
[1722097926112,0.08986,69089.0,69088.0,0.44224124]
[1722097926575,0.08986,69089.0,69088.0,0.45624124]
[1722097926576,0.11257711,69089.0,69088.0,0.45624124]
[1722097927435,0.11257711,69089.0,69088.0,0.47024124]
[1722097928575,0.11257711,69089.0,69088.0,0.75972624]
[1722097928830,0.11257711,69089.0,69088.0,0.31149924]
[1722097929014,0.11257711,69089.0,69088.0,0.32549924]
[1722097931278,0.08986,69089.0,69088.0,0.32549924]
[1722097933366,0.08986,69089.0,69088.0,0.47024124]
[1722097933550,0.11076,69089.0,69088.0,0.32549924]
[1722097933835,0.11076,69089.0,69088.0,0.47024124]
[1722097934528,0.13347741,69089.0,69088.0,0.47024124]
[1722097934990,0.13347741,69089.0,69088.0,0.75972624]
[1722097935165,0.11257741,69089.0,69088.0,0.75972624]
[1722097936345,0.11257741,69089.0,69088.0,0.47024124]
[1722097936911,0.11257741,69089.0,69088.0,0.32549924]
[1722097937870,0.11257741,69089.0,69088.0,0.47024124]
[1722097938700,0.11257741,69089.0,69088.0,0.75972624]
[1722097939110,0.08986,69089.0,69088.0,0.75972624]
[1722097939310,0.08986,69089.0,69088.0,1.04921124]
[1722097939512,0.08986,69089.0,69088.0,0.75972624]
[1722097939912,0.01016,69089.0,69088.0,0.75972624]
[1722097941179,0.01016,69089.0,69088.0,1.27301124]
[1722097941380,0.01016,69089.0,69088.0,1.56249624]
[1722097941567,0.01016,69089.0,69088.0,1.68276693]
[1722097942286,0.03287397,69089.0,69088.0,1.56249624]
[1722097942475,0.03287397,69089.0,69088.0,1.68203477]
[1722097942880,0.03287397,69089.0,69088.0,1.88431434]
[1722097943086,0.03287397,69089.0,69088.0,2.05417393]
[1722097943390,0.01016,69089.0,69088.0,2.34365893]
[1722097943620,0.01016,69089.0,69088.0,2.30069934]
[1722097943738,0.01016,69089.0,69088.0,2.27269934]
[1722097943938,0.01016,69089.0,69088.0,2.28669934]
[1722097944177,0.01016,69089.0,69088.0,2.30069934]
[1722097944567,0.01016,69089.0,69088.0,2.3006949]
[1722097945608,0.01016,69089.0,69088.0,2.30069661]
[1722097946043,0.01016,69089.0,69088.0,2.30269661]
[1722097946243,0.03287454,69089.0,69088.0,2.30269661]
[1722097946643,0.03287454,69089.0,69088.0,2.3456562]
[1722097946845,0.01016,69089.0,69088.0,2.68831607]
[1722097947048,0.01016,69089.0,69088.0,2.67431607]
[1722097947245,0.01016,69089.0,69088.0,2.36720294]
[1722097947531,0.01016,69089.0,69088.0,2.67431226]
[1722097947692,0.01016,69089.0,69088.0,2.35320294]
[1722097948246,0.01016,69089.0,69088.0,2.96379753]
[1722097948447,0.01016,69089.0,69088.0,2.9852912]
[1722097948963,0.01016,69089.0,69088.0,2.99927317]
[1722097949152,0.01016,69089.0,69088.0,2.98527317]
[1722097949559,0.01016,69089.0,69088.0,2.99927317]
[1722097950359,0.01016,69089.0,69088.0,3.01327317]
[1722097950562,0.01016,69089.0,69088.0,3.07774357]
[1722097950760,0.01016,69089.0,69088.0,2.99927317]
[1722097950962,0.01016,69089.0,69088.0,3.06373189]
[1722097951124,0.01016,69089.0,69088.0,3.07773189]
[1722097951628,0.01016,69089.0,69088.0,2.75662781]
[1722097951997,0.01016,69089.0,69088.0,3.07773289]
[1722097952205,0.01016,69089.0,69088.0,3.07770717]
[1722097952488,0.01016,69089.0,69088.0,3.01327269]
[1722097952689,0.01016,69089.0,69088.0,3.09918533]
[1722097952890,0.01016,69089.0,69088.0,3.77339141]
[1722097953199,0.00939454,69089.0,69088.0,3.77339141]
[1722097953400,0.03210749,69089.0,69088.0,3.77339141]
[1722097954060,0.00939454,69089.0,69088.0,3.75939141]
[1722097954267,0.00939454,69089.0,69088.0,3.8807565]
[1722097955355,0.00939454,69089.0,69088.0,3.82062769]
[1722097955563,0.00939454,69089.0,69088.0,3.77338291]
[1722097955693,0.00939454,69089.0,69088.0,3.75938291]
[1722097955895,0.00939454,69089.0,69088.0,3.80662769]
[1722097956098,0.00939454,69089.0,69088.0,3.82062769]
[1722097956296,0.00939454,69089.0,69088.0,3.79262769]
[1722097956513,0.00939454,69089.0,69088.0,3.80662769]
[1722097956779,0.00939454,69089.0,69088.0,3.7132626]
[1722097956948,0.00939454,69089.0,69088.0,3.6992626]
[1722097957108,0.03210737,69089.0,69088.0,3.6852626]
[1722097957308,0.03210737,69089.0,69088.0,3.78511575]
[1722097957911,0.03210737,69089.0,69088.0,3.77111575]
[1722097958134,0.03210737,69089.0,69088.0,3.78511575]
[1722097958335,0.03210737,69089.0,69088.0,3.79911575]
[1722097958503,0.00939454,69089.0,69088.0,3.39216168]
[1722097958703,0.00939454,69089.0,69088.0,3.79910516]
[1722097958919,0.00939454,69089.0,69088.0,3.81310516]
[1722097959121,0.00939454,69089.0,69088.0,3.81310514]
[1722097959323,0.00939454,69089.0,69088.0,3.72724595]
[1722097959541,0.00939454,69089.0,69088.0,3.71324595]
[1722097959756,0.00939454,69089.0,69088.0,3.72724595]
[1722097960355,0.00939454,69089.0,69088.0,3.76358]
[1722097961035,0.00939454,69089.0,69088.0,3.37816168]
[1722097961457,0.00939454,69089.0,69088.0,3.08667668]
[1722097961698,0.00939454,69089.0,69088.0,2.15217668]
[1722097961873,0.00939454,69089.0,69088.0,2.16618863]
[1722097962075,0.03210741,69089.0,69088.0,1.68094837]
[1722097962597,0.03210741,69089.0,69088.0,1.95643337]
[1722097962808,0.00939454,69089.0,69088.0,1.95643337]
[1722097963009,0.00939454,69089.0,69088.0,1.99343337]
[1722097963216,0.00939454,69089.0,69088.0,1.70394837]
[1722097963421,0.08519454,69089.0,69088.0,1.0495038]
[1722097963615,0.08519454,69089.0,69088.0,1.3669888]
[1722097963821,0.00939454,69089.0,69088.0,1.3669888]
[1722097964241,0.00939454,69089.0,69088.0,1.3529888]
[1722097964401,0.00939454,69089.0,69088.0,1.3239688]
[1722097964580,0.00939454,69089.0,69088.0,1.3379688]
[1722097964946,0.00939454,69089.0,69088.0,1.3529888]
[1722097965132,0.00939454,69089.0,69088.0,1.3239688]
[1722097965353,0.00939454,69089.0,69088.0,1.3379688]
[1722097965549,0.00939454,69089.0,69088.0,1.3669888]
[1722097967188,0.00939454,69089.0,69088.0,1.4515888]
[1722097967526,0.00939454,69089.0,69088.0,1.76474837]
[1722097967930,0.00939454,69089.0,69088.0,2.05423337]
[1722097968325,0.00939454,69089.0,69088.0,1.88501265]
[1722097968529,0.00939454,69089.0,69088.0,2.05423337]
[1722097968728,0.00939454,69089.0,69088.0,1.88501239]
[1722097969048,0.00939454,69089.0,69088.0,1.72531239]
[1722097969265,0.00939454,69089.0,69088.0,1.16874989]
[1722097969266,0.10790885,69089.0,69088.0,1.16874989]
[1722097969466,0.12880885,69089.0,69088.0,1.0774938]
[1722097969871,0.10609454,69089.0,69088.0,1.0774938]
[1722097970317,0.10609454,69089.0,69088.0,1.0634938]
[1722097970508,0.10609454,69089.0,69088.0,0.7740088]
[1722097970681,0.10609454,69089.0,69088.0,1.0774938]
[1722097971139,0.10609454,69089.0,69088.0,0.7449988]
[1722097971257,0.10609454,69089.0,69088.0,1.0344838]
[1722097971483,0.10609454,69089.0,69088.0,0.7449988]
[1722097971893,0.10609454,69089.0,69088.0,0.7589988]
[1722097972098,0.10609454,69089.0,69088.0,0.7740088]
[1722097972650,0.10609454,69089.0,69088.0,0.7880088]
[1722097972895,0.00087266,69089.0,69088.0,1.46417688]
[1722097973092,0.002,69099.0,69098.0,0.144721]
[1722097973296,0.002,69099.0,69098.0,0.852617]
[1722097973409,0.002,69099.0,69098.0,0.88400415]
[1722097973610,0.002,69099.0,69098.0,0.47156115]
[1722097974065,0.002,69099.0,69098.0,0.76100415]
[1722097974915,0.002,69099.0,69098.0,1.40591715]
[1722097975113,0.002,69099.0,69098.0,1.42891715]
[1722097975314,0.002,69099.0,69098.0,1.44291715]
[1722097976128,0.002,69099.0,69098.0,1.45691715]
[1722097976878,0.02471221,69099.0,69098.0,1.45691715]
[1722097977700,0.002,69099.0,69098.0,1.45691715]
[1722097979079,0.002,69099.0,69098.0,1.80763333]
[1722097979290,0.002,69099.0,69098.0,1.45691715]
[1722097980417,0.002,69099.0,69098.0,1.44291715]
[1722097981029,0.02471208,69099.0,69098.0,1.44291715]
[1722097981254,0.02471208,69099.0,69098.0,1.42891715]
[1722097981479,0.002,69099.0,69098.0,1.42891715]
[1722097981699,0.002,69099.0,69098.0,1.45691715]
[1722097984618,0.02471235,69099.0,69098.0,1.45691715]
[1722097984820,0.02555235,69099.0,69098.0,1.45691715]
[1722097985022,0.02555235,69099.0,69098.0,1.74636015]
[1722097985466,0.02555235,69099.0,69098.0,1.86661267]
[1722097986232,0.02555235,69099.0,69098.0,1.57716967]
[1722097986810,0.02555235,69099.0,69098.0,1.57716563]
[1722097987195,0.02555235,69099.0,69098.0,1.86660863]
[1722097987788,0.02555235,69099.0,69098.0,1.86860863]
[1722097988178,0.02555235,69099.0,69098.0,2.0970682]
[1722097988577,0.02555235,69099.0,69098.0,1.97681972]
[1722097988804,0.00284,69099.0,69098.0,1.97681972]
[1722097989658,0.02555221,69099.0,69098.0,1.97681972]
[1722097990274,0.00284,69099.0,69098.0,1.97681972]
[1722097990480,0.00284,69099.0,69098.0,2.09707177]
[1722097991935,0.00284,69099.0,69098.0,2.01687177]
[1722097993617,0.02555221,69099.0,69098.0,2.01887177]
[1722097993846,0.02555221,69099.0,69098.0,2.09207177]
[1722097994084,0.00284,69099.0,69098.0,2.09207177]
[1722097995072,0.00284,69099.0,69098.0,2.05641972]
[1722097995245,0.00284,69099.0,69098.0,2.17667185]
[1722097996475,0.00284,69099.0,69098.0,2.10147083]
[1722097996676,0.00284,69099.0,69098.0,1.36861715]
[1722097997039,0.0255526,69099.0,69098.0,1.36861715]
[1722097997621,0.00284,69099.0,69098.0,1.36861715]
[1722098000093,0.0255526,69099.0,69098.0,1.36861715]
[1722098000720,0.00284,69099.0,69098.0,1.36861715]
[1722098001337,0.00284,69099.0,69098.0,1.48887316]
[1722098002841,0.00284,69099.0,69098.0,1.36861715]
[1722098003065,0.00284,69099.0,69098.0,1.48887316]
[1722098004223,0.02555254,69099.0,69098.0,1.48887316]
[1722098004951,0.02555254,69099.0,69098.0,1.70343273]
[1722098005172,0.02555254,69099.0,69098.0,1.80163273]
[1722098006365,0.02555254,69099.0,69098.0,1.72643273]
[1722098008529,0.10575254,69099.0,69098.0,1.48887316]
[1722098008736,0.10575254,69099.0,69098.0,1.45986316]
[1722098009131,0.10575254,69099.0,69098.0,1.33960715]
[1722098009303,0.10575254,69099.0,69098.0,1.05016415]
[1722098009625,0.12665254,69099.0,69098.0,0.32655715]
[1722098009828,0.12665254,69099.0,69098.0,0.47127815]
[1722098010307,0.10394,69099.0,69098.0,0.32655715]
[1722098011529,0.10394,69099.0,69098.0,0.31255715]
[1722098012274,0.10394,69099.0,69098.0,0.29855715]
[1722098012436,0.10394,69099.0,69098.0,0.32655715]
[1722098012632,0.10394,69099.0,69098.0,0.31255715]
[1722098012893,0.10394,69099.0,69098.0,0.29855715]
[1722098013076,0.10394,69099.0,69098.0,0.31255715]
[1722098013288,0.248659,69099.0,69098.0,0.32655715]
[1722098013487,0.56081259,69099.0,69098.0,0.32655715]
[1722098013638,0.85025159,69099.0,69098.0,0.31817]
[1722098013840,0.56081259,69099.0,69098.0,0.32656594]
[1722098014246,0.56081259,69099.0,69098.0,0.31817]
[1722098014440,0.56081259,69099.0,69098.0,0.31256594]
[1722098014843,0.56174676,69099.0,69098.0,0.32656594]
[1722098015265,0.56081259,69099.0,69098.0,0.32656594]
[1722098015663,0.56081259,69099.0,69098.0,0.31256594]
[1722098015888,0.56081259,69099.0,69098.0,0.29856594]
[1722098016062,0.56081259,69099.0,69098.0,0.31056594]
[1722098016614,0.85025159,69099.0,69098.0,0.31056594]
[1722098016851,0.56081259,69099.0,69098.0,0.32156594]
[1722098017056,0.85025159,69099.0,69098.0,0.32156594]
[1722098017759,0.56081259,69099.0,69098.0,0.32156594]
[1722098018102,0.56174676,69099.0,69098.0,0.32156594]
[1722098018902,0.53903217,69099.0,69098.0,0.32156594]
[1722098019541,0.827537,69099.0,69098.0,0.32156594]
[1722098019736,0.538098,69099.0,69098.0,0.32156594]
[1722098020404,0.53903217,69099.0,69098.0,0.32156594]
[1722098020592,0.827537,69099.0,69098.0,0.32156594]
[1722098020978,0.827537,69099.0,69098.0,0.31317]
[1722098021502,0.82847117,69099.0,69098.0,0.32160221]
[1722098023308,0.82847117,69099.0,69098.0,0.31317]
[1722098023513,0.827537,69099.0,69098.0,0.32160221]
[1722098023778,0.82847117,69099.0,69098.0,0.32160221]
[1722098024660,0.827537,69099.0,69098.0,0.32160221]
[1722098024971,0.82847117,69099.0,69098.0,0.32160221]
[1722098025173,0.912137,69099.0,69098.0,0.32160221]
[1722098025363,0.912137,69099.0,69098.0,0.31317]
[1722098025709,0.912137,69099.0,69098.0,0.32161893]
[1722098027083,0.93485258,69099.0,69098.0,0.32161893]
[1722098027381,0.93485258,69099.0,69098.0,0.31317]
[1722098027883,0.93485258,69099.0,69098.0,0.32161893]
[1722098028329,0.912137,69099.0,69098.0,0.32161893]
[1722098028462,1.201576,69099.0,69098.0,0.32161893]
[1722098028670,1.201576,69099.0,69098.0,0.31317]
[1722098028865,0.912137,69099.0,69098.0,0.31317]
[1722098029092,0.912137,69099.0,69098.0,0.32161893]
[1722098031501,0.93485271,69099.0,69098.0,0.32161893]
[1722098031717,1.201576,69099.0,69098.0,0.31317]
[1722098031922,0.912137,69099.0,69098.0,0.32161893]
[1722098032375,0.912137,69099.0,69098.0,0.31317]
[1722098032588,1.201576,69099.0,69098.0,0.31317]
[1722098032805,1.201576,69099.0,69098.0,0.32161893]
[1722098033046,1.491015,69099.0,69098.0,0.31317]
[1722098033205,1.591015,69099.0,69098.0,0.30965163]
[1722098033406,1.74127457,69099.0,69098.0,0.29017]
[1722098033621,1.591015,69099.0,69098.0,0.30117]
[1722098034535,1.591015,69099.0,69098.0,0.30217]
[1722098034906,1.591015,69099.0,69098.0,0.29117]
[1722098035278,1.61673301,69099.0,69098.0,0.29117]
[1722098035473,1.883454,69099.0,69098.0,0.11471511]
[1722098035780,1.883454,69099.0,69089.0,0.000924]
[1722098035781,1.404446,69090.0,69089.0,0.000924]
[1722098035920,1.489046,69090.0,69089.0,0.000924]
[1722098036536,1.199569,69090.0,69089.0,0.000924]
[1722098037367,1.199569,69090.0,69089.0,0.004924]
[1722098038162,1.199569,69090.0,69089.0,0.010924]
[1722098038944,1.1167882,69090.0,69089.0,0.010924]
[1722098039358,0.8273112,69090.0,69089.0,0.010924]
[1722098040197,1.1167882,69090.0,69089.0,0.010924]
[1722098041692,1.12565809,69090.0,69089.0,0.010924]
[1722098042492,1.10293889,69090.0,69089.0,0.010924]
[1722098045636,1.12565757,69090.0,69089.0,0.010924]
[1722098046261,1.28028333,69090.0,69089.0,0.010924]
[1722098046464,1.56976033,69090.0,69089.0,0.010924]
[1722098046950,1.54704165,69090.0,69089.0,0.010924]
[1722098047685,1.54704165,69090.0,69089.0,0.006924]
[1722098048075,1.54704165,69090.0,69089.0,0.000924]
[1722098048312,1.54704165,69090.0,69089.0,0.002924]
[1722098049484,1.41331589,69090.0,69089.0,0.002924]
[1722098049768,1.10623889,69090.0,69089.0,0.002924]
[1722098049966,1.10623889,69090.0,69089.0,0.067924]
[1722098049967,1.02303889,69090.0,69089.0,0.067924]
[1722098051015,0.145738,69090.0,69089.0,0.151024]
[1722098051144,0.724692,69090.0,69089.0,0.151024]
[1722098051348,0.435215,69090.0,69089.0,0.151024]
[1722098051554,0.45793279,69090.0,69089.0,0.1595614]
[1722098051948,0.724692,69090.0,69089.0,0.1595614]
[1722098052134,0.724692,69090.0,69089.0,0.151024]
[1722098052543,0.435215,69090.0,69089.0,0.151024]
[1722098052747,0.145738,69090.0,69089.0,0.151024]
[1722098053101,0.001,69090.0,69089.0,0.440504]
[1722098053515,0.001,69090.0,69089.0,0.4490414]
[1722098053917,0.435215,69090.0,69089.0,0.3659414]
[1722098054139,0.435215,69090.0,69089.0,0.3639414]
[1722098054140,0.723692,69090.0,69089.0,0.3639414]
[1722098054299,0.723692,69090.0,69089.0,0.2989414]
[1722098054463,0.723692,69090.0,69089.0,0.3209414]
[1722098054926,0.723692,69090.0,69089.0,0.3099414]
[1722098055127,1.013169,69090.0,69089.0,0.2989414]
[1722098055330,1.013169,69090.0,69089.0,0.2999414]
[1722098055528,1.03587715,69090.0,69089.0,0.3059414]
[1722098055807,1.03587715,69090.0,69089.0,0.3049414]
[1722098056128,1.03587715,69090.0,69089.0,0.3129414]
[1722098056765,1.03587715,69090.0,69089.0,0.3069414]
[1722098057091,1.03587715,69090.0,69089.0,0.3099414]
[1722098057291,1.03587715,69090.0,69089.0,0.3019414]
[1722098057605,1.03587715,69090.0,69089.0,0.3069414]
[1722098058035,1.05859514,69090.0,69089.0,0.3069414]
[1722098058858,0.74640015,69090.0,69089.0,0.3069414]
[1722098060197,0.02270815,69090.0,69089.0,0.3719414]
[1722098060687,0.02270815,69090.0,69089.0,0.4550414]
[1722098060969,0.02270815,69090.0,69089.0,0.5997814]
[1722098061223,0.02270815,69090.0,69089.0,0.45566143]
[1722098061482,0.02270815,69090.0,69089.0,0.4550414]
[1722098061970,0.02270815,69090.0,69089.0,0.45566143]
[1722098062264,0.04542519,69090.0,69089.0,0.4550414]
[1722098062688,1.13997715,69090.0,69089.0,0.3069414]
[1722098063408,1.55488296,69090.0,69089.0,0.3069414]
[1722098063644,0.144759,69080.0,69074.0,0.000924]
[1722098063875,0.806997,69080.0,69075.0,0.00062003]
[1722098064102,1.096516,69080.0,69075.0,0.00062003]
[1722098064350,1.096516,69080.0,69079.0,0.290444]
[1722098064829,1.096516,69080.0,69079.0,0.299444]
[1722098065358,1.096516,69080.0,69074.0,0.000924]
[1722098065359,0.93545,69075.0,69074.0,0.000924]
[1722098065608,0.93545,69075.0,69062.0,0.000924]
[1722098065609,0.434385,69063.0,69062.0,0.000924]
[1722098065843,0.744885,69062.0,69061.0,0.00062003]
[1722098066102,0.434442,69054.0,69053.0,0.00062003]
[1722098066289,0.434448,69053.0,69047.0,0.065]
[1722098066464,0.72408,69053.0,69052.0,0.290554]
[1722098066786,1.013712,69053.0,69052.0,0.290554]
[1722098067164,1.096912,69053.0,69052.0,0.290554]
[1722098067950,1.097912,69053.0,69052.0,0.296554]
[1722098068151,1.096912,69053.0,69052.0,0.290554]
[1722098068471,1.096912,69053.0,69052.0,0.296554]
[1722098069960,1.11964189,69053.0,69052.0,0.296554]
[1722098070578,1.096912,69053.0,69052.0,0.296554]
[1722098070966,1.71412715,69053.0,69052.0,0.296554]
[1722098071279,1.71412715,69053.0,69052.0,0.30383874]
[1722098071491,1.81412715,69053.0,69052.0,0.296554]
[1722098071789,1.83502715,69053.0,69052.0,0.296554]
[1722098071951,1.83502715,69053.0,69052.0,0.292554]
[1722098072351,1.701144,69053.0,69052.0,0.292554]
[1722098072549,1.70992056,69053.0,69052.0,0.292554]
[1722098073332,1.70692056,69053.0,69052.0,0.290554]
[1722098073534,1.7356517,69053.0,69052.0,0.291554]
[1722098073780,1.7386517,69053.0,69052.0,0.291554]
[1722098074364,1.6554517,69053.0,69052.0,0.291554]
[1722098074565,1.63272056,69053.0,69052.0,0.291554]
[1722098074766,1.34308856,69053.0,69052.0,0.291554]
[1722098075788,1.13148856,69053.0,69052.0,0.291554]
[1722098076533,1.13148856,69053.0,69052.0,0.355054]
[1722098076743,1.13148856,69053.0,69052.0,0.36248669]
[1722098077302,1.13148856,69053.0,69052.0,0.29898669]
[1722098078015,1.39384614,69053.0,69052.0,0.29898669]
[1722098078772,1.37111456,69053.0,69052.0,0.29898669]
[1722098079749,1.37111456,69053.0,69052.0,0.291554]
[1722098080199,1.34308856,69053.0,69052.0,0.291554]
[1722098080520,1.65362056,69053.0,69052.0,0.291554]
[1722098081964,1.67635248,69053.0,69052.0,0.291554]
[1722098083215,1.65362056,69053.0,69052.0,0.291554]
[1722098086364,1.67635248,69053.0,69052.0,0.291554]
[1722098086770,1.82661205,69053.0,69052.0,0.291554]
[1722098087295,1.80388013,69053.0,69052.0,0.291554]
[1722098087940,1.65362056,69053.0,69052.0,0.291554]
[1722098088136,1.63272056,69053.0,69052.0,0.291554]
[1722098090598,1.73575248,69053.0,69052.0,0.291554]
[1722098090799,1.71302056,69053.0,69052.0,0.291554]
[1722098091502,2.02355256,69053.0,69052.0,0.291554]
[1722098091718,2.17381213,69053.0,69052.0,0.291554]
[1722098094237,2.19654539,69053.0,69052.0,0.291554]
[1722098094440,2.17381213,69053.0,69052.0,0.291554]
[1722098094646,2.19681213,69053.0,69052.0,0.291554]
[1722098095199,2.19681213,69053.0,69052.0,0.28055047]
[1722098095401,1.013904,69040.0,69039.0,0.000924]
[1722098095600,1.615191,69040.0,69039.0,0.061324]
[1722098096010,1.615191,69040.0,69039.0,0.000924]
[1722098096848,1.615191,69040.0,69039.0,0.002924]
[1722098097476,1.615191,69040.0,69039.0,0.001924]
[1722098097828,1.63792695,69040.0,69039.0,0.000924]
[1722098098028,1.63792695,69040.0,69039.0,0.001924]
[1722098098633,1.78818652,69040.0,69039.0,0.001924]
[1722098098797,1.78818652,69040.0,69039.0,0.004924]
[1722098099229,1.76545057,69040.0,69039.0,0.004924]
[1722098100152,1.615191,69040.0,69039.0,0.004924]
[1722098100378,1.325504,69040.0,69039.0,0.004924]
[1722098102576,1.34824001,69040.0,69039.0,0.004924]
[1722098103023,1.325504,69040.0,69039.0,0.004924]
[1722098103228,1.113904,69040.0,69039.0,0.004924]
[1722098103407,1.12282686,69040.0,69039.0,0.004924]
[1722098105901,1.14556283,69040.0,69039.0,0.004924]
[1722098106262,0.85587583,69040.0,69039.0,0.148324]
[1722098107012,0.43989757,69052.0,69040.0,0.1434]
[1722098107013,0.15025957,69052.0,69040.0,0.1434]
[1722098107181,0.289678,69042.0,69041.0,0.06851502]
[1722098107362,0.434517,69042.0,69041.0,0.06851502]
[1722098107561,0.434517,69042.0,69041.0,0.14402003]
[1722098107837,0.724195,69042.0,69041.0,0.15151502]
[1722098108047,0.724195,69042.0,69041.0,0.15089499]
[1722098108444,1.1152587,69042.0,69041.0,0.0604]
[1722098109037,1.1172587,69042.0,69041.0,0.0604]
[1722098110841,1.11708443,69042.0,69041.0,0.0604]
[1722098112062,1.01569873,69042.0,69041.0,0.0604]
[1722098113124,0.724217,69040.0,69039.0,0.000924]
[1722098113301,1.225504,69040.0,69039.0,0.00154403]
[1722098113707,1.225504,69040.0,69039.0,0.000924]
[1722098113968,1.3482544,69040.0,69039.0,0.000924]
[1722098114573,1.37099027,69040.0,69039.0,0.00154403]
[1722098114772,1.37099027,69040.0,69039.0,0.00254403]
[1722098115055,1.37099027,69040.0,69039.0,0.001924]
[1722098115184,1.3482544,69040.0,69039.0,0.00254403]
[1722098115823,1.24823078,69040.0,69039.0,0.001924]
[1722098116030,1.24823078,69040.0,69039.0,0.004924]
[1722098116928,1.24823078,69040.0,69039.0,0.00554403]
[1722098117323,1.24823078,69040.0,69039.0,0.004924]
[1722098118565,1.2709669,69040.0,69039.0,0.00554403]
[1722098118978,1.24823078,69040.0,69039.0,0.00554403]
[1722098119265,1.53791778,69040.0,69039.0,0.00554403]
[1722098119458,1.78817735,69040.0,69039.0,0.004924]
[1722098119580,1.87137735,69040.0,69039.0,0.004924]
[1722098120037,1.87137735,69040.0,69039.0,0.001924]
[1722098120410,1.87537735,69040.0,69039.0,0.001924]
[1722098120630,1.87537735,69040.0,69039.0,0.000924]
[1722098120811,1.90013973,69040.0,69039.0,0.000924]
[1722098121168,1.82293973,69040.0,69039.0,0.000924]
[1722098121371,1.79817735,69040.0,69039.0,0.000924]
[1722098121517,1.80417735,69040.0,69039.0,0.000924]
[1722098122123,1.82691441,69040.0,69039.0,0.000924]
[1722098122325,1.80017735,69040.0,69039.0,0.000924]
[1722098122526,2.08986435,69040.0,69039.0,0.000924]
[1722098122726,2.11833024,69040.0,69039.0,0.000924]
[1722098125106,2.22453024,69040.0,69039.0,0.000924]
[1722098125309,2.20006435,69040.0,69039.0,0.000924]
[1722098125527,2.2254998,69040.0,69039.0,0.000924]
[1722098125704,2.24823838,69040.0,69039.0,0.000924]
[1722098125890,2.24423838,69040.0,69039.0,0.000924]
[1722098126295,2.24223838,69040.0,69039.0,0.001924]
[1722098126502,1.48449181,69040.0,69039.0,0.064724]
[1722098126701,1.45905636,69040.0,69039.0,0.064724]
[1722098127154,1.48409271,69040.0,69039.0,0.064724]
[1722098127350,1.45905636,69040.0,69039.0,0.064724]
[1722098127718,1.47305636,69040.0,69039.0,0.064724]
[1722098128833,1.47305636,69040.0,69039.0,0.063227]
[1722098134021,1.50178581,69040.0,69039.0,0.063227]
[1722098134482,1.47904723,69040.0,69039.0,0.063227]
[1722098136203,1.45031778,69040.0,69039.0,0.143727]
[1722098137727,1.47305507,69040.0,69039.0,0.143727]
[1722098138162,1.45031778,69040.0,69039.0,0.143727]
[1722098139422,1.4763235,69040.0,69039.0,0.143727]
[1722098139631,1.61843561,69040.0,69039.0,0.143727]
[1722098140580,1.4763235,69040.0,69039.0,0.143727]
[1722098141028,1.49906079,69040.0,69039.0,0.143727]
[1722098141203,1.58386079,69040.0,69039.0,0.143727]
[1722098141992,1.58407323,69040.0,69039.0,0.143727]
[1722098142197,1.53511778,69040.0,69039.0,0.143727]
[1722098142934,1.54414883,69040.0,69039.0,0.143727]
[1722098143482,1.58183801,69040.0,69039.0,0.143727]
[1722098143831,1.54880696,69040.0,69039.0,0.1433]
[1722098144036,1.58397503,69040.0,69039.0,0.1443]
[1722098144244,1.59597503,69040.0,69039.0,0.1443]
[1722098144429,1.55828585,69040.0,69039.0,0.1443]
[1722098144632,1.5673171,69040.0,69039.0,0.1443]
[1722098145236,1.56745595,69040.0,69039.0,0.0638]
[1722098145525,1.74045281,69040.0,69039.0,0.0638]
[1722098145740,1.73142157,69040.0,69039.0,0.0638]
[1722098145904,1.70868428,69040.0,69039.0,0.0638]
[1722098147297,1.70868428,69040.0,69039.0,0.064724]
[1722098148386,1.68237735,69040.0,69039.0,0.064724]
[1722098148806,1.70853084,69040.0,69039.0,0.064724]
[1722098149131,1.73126813,69040.0,69039.0,0.064724]
[1722098150134,1.70853084,69040.0,69039.0,0.064724]
[1722098151783,1.68237735,69040.0,69039.0,0.064724]
[1722098151981,1.70788208,69040.0,69039.0,0.064724]
[1722098152442,1.55762251,69040.0,69039.0,0.064724]
[1722098154321,1.53211778,69040.0,69039.0,0.064724]
[1722098154522,1.55796842,69040.0,69039.0,0.064724]
[1722098157147,1.58070571,69040.0,69039.0,0.064724]
[1722098157789,1.55796842,69040.0,69039.0,0.064724]
[1722098158023,1.63048029,69040.0,69039.0,0.064724]
[1722098158532,1.63033091,69040.0,69039.0,0.064724]
[1722098158937,1.63008466,69040.0,69039.0,0.064724]
[1722098159849,1.63008466,69040.0,69039.0,0.145824]
[1722098159850,0.04372678,69040.0,69039.0,0.145824]
[1722098160054,0.04372678,69040.0,69039.0,0.29887048]
[1722098160258,0.04372678,69040.0,69039.0,0.15402548]
[1722098160461,0.00084,69052.0,69044.0,0.0811]
[1722098160462,0.289642,69051.0,69044.0,0.0811]
[1722098160712,0.144823,69050.0,69046.0,0.0811]
[1722098160936,0.00084,69052.0,69048.0,0.1443]
[1722098161153,0.00084,69052.0,69042.0,0.2888654]